bitfinex/quotes_ETHUSD_20240921
["timestamp","ask_amount","ask_price","bid_price","bid_amount"]
[1726907119425,0.82165068,2554.6,2554.4,1.2]
[1726907120475,3.21565068,2554.7,2554.4,1.2]
[1726907120731,0.92460705,2554.6,2554.4,1.2]
[1726907120872,3.21565068,2554.7,2554.4,1.2]
[1726907121076,3.14026077,2554.7,2554.4,1.2]
[1726907122716,2.20413271,2554.6,2554.4,1.2]
[1726907122891,0.82165068,2554.6,2554.4,1.2]
[1726907123465,0.82165068,2554.6,2554.4,1.5]
[1726907129748,1.38331977,2554.5,2554.4,1.5]
[1726907129938,0.82165068,2554.6,2554.4,1.5]
[1726907130140,2.20518193,2554.5,2554.4,1.5]
[1726907130853,1.38353125,2554.5,2554.4,1.5]
[1726907131011,0.82165068,2554.6,2554.4,1.5]
[1726907131211,2.20514527,2554.5,2554.4,1.5]
[1726907131408,0.82165068,2554.6,2554.4,1.89301]
[1726907131648,0.82165068,2554.7,2554.5,2.4301]
[1726907131858,18.67165068,2554.8,2554.5,2.4301]
[1726907132359,17.85,2554.8,2554.5,2.4301]
[1726907132509,17.85,2554.8,2554.7,2.4301]
[1726907132959,17.85,2554.8,2554.7,5.4301]
[1726907133267,17.85,2555.0,2554.7,5.4301]
[1726907133571,18.67165068,2555.0,2554.7,5.4301]
[1726907133726,17.85,2555.0,2554.8,3.5862411]
[1726907134236,18.67165068,2555.0,2554.8,3.5862411]
[1726907134750,17.85,2555.0,2554.8,3.5862411]
[1726907134915,17.85,2555.0,2554.9,35.0]
[1726907136555,0.85277358,2555.1,2554.9,35.0]
[1726907136860,0.85277358,2555.1,2554.9,35.57356076]
[1726907137220,0.0311229,2555.1,2554.9,35.57356076]
[1726907137451,17.8811229,2555.1,2555.0,2.3149]
[1726907137652,0.0311229,2555.1,2555.0,2.3149]
[1726907138461,0.0311229,2555.1,2555.0,40.3149]
[1726907138759,0.0311229,2555.1,2555.0,41.3334521]
[1726907142401,0.0311229,2555.1,2555.0,6.3334521]
[1726907142769,0.0311229,2555.1,2555.0,41.3334521]
[1726907144684,0.0311229,2555.1,2555.0,39.0185521]
[1726907145678,0.0311229,2555.1,2555.0,4.0185521]
[1726907145868,0.0311229,2555.1,2555.0,1.0185521]
[1726907146166,0.0311229,2555.1,2555.0,36.0185521]
[1726907146519,0.0311229,2555.1,2555.0,39.0185521]
[1726907150004,0.0311229,2555.1,2555.0,1.0185521]
[1726907150562,0.0311229,2555.1,2555.0,39.0185521]
[1726907152075,0.0311229,2555.1,2555.0,41.3477521]
[1726907157728,0.0311229,2555.1,2555.0,39.0185521]
[1726907158018,0.0311229,2555.1,2554.7,2.3521]
[1726907158019,2.4252229,2555.1,2554.7,2.3521]
[1726907158390,2.4252229,2555.1,2554.9,3.0]
[1726907159489,2.4252229,2555.1,2554.7,2.3521]
[1726907160019,2.4252229,2555.1,2554.8,35.0]
[1726907160201,2.4252229,2555.1,2554.9,3.0]
[1726907160407,2.4252229,2555.1,2554.7,2.3521]
[1726907161021,2.4252229,2555.1,2554.9,3.0]
[1726907161325,2.4252229,2555.1,2554.7,2.3521]
[1726907161928,2.4252229,2555.1,2554.9,3.0]
[1726907162341,2.4252229,2555.1,2554.7,2.3521]
[1726907162697,2.4252229,2555.1,2554.8,35.0]
[1726907163033,2.4252229,2555.1,2554.9,3.0]
[1726907163242,2.4252229,2555.1,2554.7,2.3521]
[1726907163600,2.4252229,2555.1,2554.9,3.0]
[1726907164106,2.4252229,2555.1,2554.5,5.4504]
[1726907164431,2.4252229,2555.1,2554.6,3.69504]
[1726907164669,2.4252229,2555.1,2554.8,3.0]
[1726907164869,2.4252229,2555.1,2554.8,3.32816581]
[1726907165170,2.4252229,2555.1,2554.8,0.32816581]
[1726907165381,2.4252229,2555.1,2554.6,3.69504]
[1726907165538,2.4252229,2555.1,2555.0,3.0]
[1726907168732,2.4011,2555.0,2554.5,2.4504]
[1726907168934,2.4011,2555.0,2554.4,1.5]
[1726907169289,2.4011,2555.0,2554.6,35.0]
[1726907169570,2.4011,2555.0,2554.6,37.4504]
[1726907169935,2.4011,2555.0,2554.7,0.32836579]
[1726907170271,2.4011,2555.0,2554.7,3.32836579]
[1726907171271,2.4011,2555.0,2554.7,3.0]
[1726907171471,2.4011,2555.0,2554.7,3.32845447]
[1726907172506,2.4011,2555.0,2554.7,3.32845403]
[1726907172976,2.4011,2555.0,2554.6,5.4504]
[1726907173703,2.4011,2555.0,2554.7,3.0]
[1726907174197,2.4011,2555.0,2554.6,2.4504]
[1726907174568,2.4011,2555.0,2554.7,3.0]
[1726907175300,2.4011,2555.0,2554.6,2.4504]
[1726907175617,2.4011,2555.0,2554.7,3.0]
[1726907176169,3.22275068,2555.0,2554.7,3.0]
[1726907176892,3.22275068,2555.0,2554.7,3.32864856]
[1726907177503,3.22275068,2555.0,2554.8,0.32864856]
[1726907178190,0.92419245,2554.9,2554.8,0.32864856]
[1726907178569,3.22275068,2555.0,2554.6,0.32864856]
[1726907178792,3.22275068,2555.0,2554.7,0.32864856]
[1726907179100,3.22275068,2555.0,2554.4,2.4446]
[1726907179310,0.92412984,2554.9,2554.5,3.24446]
[1726907179506,3.22275068,2555.0,2554.8,0.3287877]
[1726907179938,3.22275068,2555.0,2554.5,3.24446]
[1726907181436,0.92399964,2554.9,2554.5,3.24446]
[1726907181644,3.22275068,2555.0,2554.5,3.24446]
[1726907181846,0.92400089,2554.9,2554.5,3.24446]
[1726907181997,3.22275068,2555.0,2554.6,0.568906]
[1726907182200,0.92400196,2554.9,2554.5,3.24446]
[1726907182399,3.22275068,2555.0,2554.5,3.24446]
[1726907182699,0.92396943,2554.9,2554.5,3.24446]
[1726907182926,3.22275068,2555.0,2554.5,3.24446]
[1726907183126,0.92396877,2554.9,2554.5,3.24446]
[1726907183334,3.22275068,2555.0,2554.6,0.568906]
[1726907190017,3.22275068,2555.0,2554.9,0.3]
[1726907190220,0.92411961,2555.0,2554.9,0.3]
[1726907191053,0.92409157,2555.0,2554.9,0.3]
[1726907191260,0.85277358,2555.1,2554.9,0.3]
[1726907191747,0.92414392,2555.0,2554.9,0.3]
[1726907192215,0.92410934,2555.0,2554.9,0.3]
[1726907192622,0.85277358,2555.1,2554.9,0.3]
[1726907193321,0.0311229,2555.1,2554.9,0.3]
[1726907193947,0.85277358,2555.1,2554.9,0.3]
[1726907194519,0.0311229,2555.1,2554.9,0.3]
[1726907198389,0.85277358,2555.1,2554.9,0.3]
[1726907198750,0.0311229,2555.1,2554.9,0.3]
[1726907199242,0.85277358,2555.1,2554.9,0.3]
[1726907200058,0.92440783,2555.0,2554.9,0.3]
[1726907200590,3.13295624,2555.0,2554.9,0.3]
[1726907200794,0.92440783,2555.0,2554.9,0.3]
[1726907201091,0.92461915,2555.0,2554.9,0.3]
[1726907201262,2.31182196,2555.0,2554.9,0.3]
[1726907201588,2.31185204,2555.0,2554.9,0.3]
[1726907201792,0.92461915,2555.0,2554.9,0.3]
[1726907202126,3.13349692,2555.0,2554.9,0.3]
[1726907205879,3.13633804,2555.0,2554.9,0.3]
[1726907206072,0.92587494,2555.0,2554.9,0.3]
[1726907206272,3.1363105,2555.0,2554.9,0.3]
[1726907215729,0.82165068,2555.0,2554.9,0.3]
[1726907216024,3.13749618,2555.0,2554.9,0.3]
[1726907216522,3.54779488,2555.0,2554.9,0.3]
[1726907216724,4.50631372,2555.0,2554.9,0.3]
[1726907217084,4.50651423,2555.0,2554.9,0.3]
[1726907217423,3.54799539,2555.0,2554.9,0.3]
[1726907220633,3.54768419,2555.0,2554.9,0.3]
[1726907222729,2.3155343,2555.0,2554.9,0.3]
[1726907222931,3.13703813,2555.0,2554.9,0.3]
[1726907223142,2.3155343,2555.0,2554.9,0.3]
[1726907223290,3.13702934,2555.0,2554.9,0.3]
[1726907224229,3.13712527,2555.0,2554.9,0.3]
[1726907224396,3.13712527,2555.0,2554.9,35.3]
[1726907226439,2.31563023,2555.0,2554.9,35.3]
[1726907226795,3.13716269,2555.0,2554.9,35.3]
[1726907227323,3.13716269,2555.0,2554.9,0.3]
[1726907227832,3.13716269,2555.0,2554.9,35.3]
[1726907229000,3.13735298,2555.0,2554.9,35.3]
[1726907230901,3.13735298,2555.0,2554.9,0.3]
[1726907231542,3.13735298,2555.0,2554.9,35.3]
[1726907233037,2.31571787,2555.0,2554.9,35.3]
[1726907233233,3.13725033,2555.0,2554.9,35.3]
[1726907233923,3.13704073,2555.0,2554.9,35.3]
[1726907234449,3.13704073,2555.0,2554.9,0.3]
[1726907234913,3.13704073,2555.0,2554.9,35.3]
[1726907237556,2.31550827,2555.0,2554.9,35.3]
[1726907238038,3.13706057,2555.0,2554.9,0.3]
[1726907238660,3.13706057,2555.0,2554.9,35.3]
[1726907238963,3.1395478,2555.0,2554.9,35.3]
[1726907239176,4.5752955,2555.0,2554.9,35.3]
[1726907240031,5.39684899,2555.0,2554.9,35.3]
[1726907241370,5.39684437,2555.0,2554.9,35.3]
[1726907241574,4.5752955,2555.0,2554.9,35.3]
[1726907241934,5.80744539,2555.0,2554.9,35.3]
[1726907242432,5.80744539,2555.0,2554.9,0.3]
[1726907242870,5.80744539,2555.0,2554.9,35.3]
[1726907243517,3.55014539,2555.0,2554.9,35.3]
[1726907243791,3.54586979,2555.0,2554.9,35.3]
[1726907243945,3.54587796,2555.0,2554.9,35.3]
[1726907244146,2.31372807,2555.0,2554.9,35.3]
[1726907244390,2.31372807,2555.0,2554.9,35.6]
[1726907245301,3.54587796,2555.0,2554.9,35.6]
[1726907245466,3.13529169,2555.0,2554.9,35.6]
[1726907248590,3.13529169,2555.0,2554.9,35.9]
[1726907248793,3.13530034,2555.0,2554.9,35.9]
[1726907249011,3.1352999,2555.0,2554.9,35.9]
[1726907249298,3.13528165,2555.0,2554.9,35.9]
[1726907249486,2.31373672,2555.0,2554.9,35.9]
[1726907250350,3.54588661,2555.0,2554.9,35.9]
[1726907251363,2.31373672,2555.0,2554.9,35.9]
[1726907252208,3.54588661,2555.0,2554.9,35.9]
[1726907252595,3.54588661,2555.0,2554.9,1.2]
[1726907253167,3.54588661,2555.0,2554.9,36.2]
[1726907253508,1.26327279,2555.1,2554.9,36.2]
[1726907253712,2.31674796,2555.0,2554.9,36.2]
[1726907254006,3.13828783,2555.0,2554.9,36.2]
[1726907254211,2.31674796,2555.0,2554.9,36.2]
[1726907254702,3.54889785,2555.0,2554.9,36.2]
[1726907255274,2.31674796,2555.0,2554.9,36.2]
[1726907255517,3.138358,2555.0,2554.9,38.634]
[1726907256106,3.138358,2555.0,2554.9,3.634]
[1726907256604,3.138358,2555.0,2554.9,38.934]
[1726907259707,3.138358,2555.0,2554.9,3.934]
[1726907260215,3.138358,2555.0,2554.9,38.934]
[1726907261990,0.92669918,2555.0,2554.9,38.934]
[1726907262392,3.13835399,2555.0,2554.9,38.934]
[1726907262626,2.31674395,2555.0,2554.9,38.934]
[1726907262922,3.13835399,2555.0,2554.9,38.934]
[1726907263107,3.13835399,2555.0,2554.9,3.934]
[1726907263620,3.13835399,2555.0,2554.9,38.934]
[1726907263990,2.31674395,2555.0,2554.9,38.934]
[1726907264222,3.13835399,2555.0,2554.9,38.934]
[1726907265684,2.31674395,2555.0,2554.9,38.934]
[1726907266017,0.92669918,2555.0,2554.9,38.934]
[1726907266588,0.92669918,2555.0,2554.9,3.934]
[1726907266804,0.92669918,2555.0,2554.9,1.5]
[1726907266994,3.13847137,2555.0,2554.9,1.5]
[1726907267219,3.13847137,2555.0,2554.9,36.5]
[1726907268023,0.92669918,2555.0,2554.9,36.5]
[1726907268222,0.92675902,2555.0,2554.9,36.5]
[1726907269123,3.13850237,2555.0,2554.9,36.5]
[1726907269793,2.31689233,2555.0,2554.9,39.5]
[1726907269999,0.92675902,2555.0,2554.9,39.5]
[1726907270500,0.92675902,2555.0,2554.9,39.45]
[1726907272429,2.31683461,2555.0,2554.9,39.45]
[1726907272581,3.13844465,2555.0,2554.9,39.45]
[1726907273188,3.13844465,2555.0,2554.9,1.45]
[1726907273382,2.31683461,2555.0,2554.9,1.45]
[1726907273591,2.31683461,2555.0,2554.9,36.45]
[1726907273792,2.31683461,2555.0,2554.9,39.45]
[1726907274835,3.13844465,2555.0,2554.9,39.45]
[1726907275199,2.31683461,2555.0,2554.9,39.45]
[1726907275739,0.92675902,2555.0,2554.9,39.45]
[1726907276235,2.31680901,2555.0,2554.9,39.45]
[1726907277008,2.31678884,2555.0,2554.9,39.45]
[1726907277292,3.13839984,2555.0,2554.9,1.45]
[1726907277490,3.13830014,2555.0,2554.9,1.45]
[1726907277796,4.4008169,2555.0,2554.9,36.45]
[1726907277999,6.87523708,2555.0,2554.9,36.45]
[1726907280102,5.64308719,2555.0,2554.9,36.45]
[1726907280335,6.46458039,2555.0,2554.9,36.45]
[1726907280896,6.46458039,2555.0,2554.9,1.45]
[1726907281324,6.46458039,2555.0,2554.9,36.45]
[1726907281522,5.64302602,2555.0,2554.9,36.45]
[1726907283619,6.87517591,2555.0,2554.9,36.45]
[1726907283810,5.64302602,2555.0,2554.9,36.45]
[1726907284543,5.64302602,2555.0,2554.9,1.45]
[1726907285146,5.64302602,2555.0,2554.9,36.45]
[1726907286555,5.64309942,2555.0,2554.9,36.45]
[1726907288151,5.64309942,2555.0,2554.9,1.45]
[1726907288650,5.64309942,2555.0,2554.9,36.45]
[1726907289025,6.87524931,2555.0,2554.9,36.45]
[1726907290550,5.64309942,2555.0,2554.9,36.45]
[1726907290932,6.87524931,2555.0,2554.9,36.45]
[1726907291254,4.79122221,2555.0,2554.9,36.45]
[1726907291451,6.0233721,2555.0,2554.9,36.45]
[1726907291655,4.79122221,2555.0,2554.9,1.45]
[1726907292029,4.79122221,2555.0,2554.9,36.45]
[1726907293561,6.0233721,2555.0,2554.9,36.45]
[1726907294057,4.79122221,2555.0,2554.9,36.45]
[1726907295239,4.79122221,2555.0,2554.9,1.45]
[1726907295416,3.79122221,2555.0,2554.9,1.45]
[1726907295625,3.79122221,2555.0,2554.9,36.45]
[1726907295827,5.0233721,2555.0,2554.9,36.45]
[1726907296132,2.40124888,2555.0,2554.9,36.45]
[1726907296336,3.13931002,2555.0,2554.9,36.45]
[1726907296932,2.13931002,2555.0,2554.9,36.45]
[1726907299673,2.13931514,2555.0,2554.9,36.45]
[1726907301141,1.74526909,2555.0,2554.9,36.45]
[1726907301546,0.92386561,2555.0,2554.9,36.45]
[1726907303442,2.1560155,2555.0,2554.9,36.45]
[1726907304070,1.23214989,2555.0,2554.9,36.45]
[1726907304371,2.15598857,2555.0,2554.9,36.45]
[1726907304667,0.92383868,2555.0,2554.9,36.45]
[1726907305172,2.15598857,2555.0,2554.9,36.45]
[1726907306144,2.15598054,2555.0,2554.9,36.45]
[1726907306838,2.30958766,2555.0,2554.9,35.0]
[1726907307034,3.54173755,2555.0,2554.9,35.3]
[1726907310966,3.54170177,2555.0,2554.9,35.6]
[1726907311855,3.54170177,2555.0,2554.9,0.6]
[1726907312036,2.30955188,2555.0,2554.9,0.6]
[1726907312238,3.13089215,2555.0,2554.9,35.6]
[1726907313013,3.54170177,2555.0,2554.9,35.6]
[1726907313275,6.50104415,2555.0,2554.9,0.6]
[1726907313436,7.21435593,2555.0,2554.9,0.6]
[1726907314077,8.85699554,2555.0,2554.9,0.6]
[1726907314261,8.7591335,2555.0,2554.9,0.6]
[1726907315040,8.7591335,2555.0,2554.9,0.9]
[1726907315450,8.75890226,2555.0,2554.9,0.9]
[1726907315776,8.76012109,2555.0,2554.9,0.9]
[1726907316846,9.17151686,2555.0,2554.9,0.9]
[1726907318152,7.11771272,2555.0,2554.9,0.9]
[1726907318348,9.26937986,2555.0,2554.9,0.9]
[1726907318685,9.17151686,2555.0,2554.9,0.9]
[1726907319234,9.17151686,2555.0,2554.9,1.2]
[1726907322880,27.02151686,2555.0,2554.9,1.2]
[1726907323255,27.02151686,2555.0,2554.9,1.5]
[1726907323438,24.96771272,2555.0,2554.9,1.5]
[1726907323949,26.60984254,2555.0,2554.9,1.5]
[1726907324165,24.96771272,2555.0,2554.9,1.5]
[1726907324566,25.51771272,2555.0,2554.9,1.5]
[1726907325583,25.51706624,2555.0,2554.9,1.5]
[1726907329256,27.5681856,2555.0,2554.9,1.5]
[1726907330436,27.56672829,2555.0,2554.9,1.5]
[1726907337998,31.48061829,2555.0,2554.9,1.5]
[1726907340248,31.47905304,2555.0,2554.9,1.5]
[1726907340618,29.42882374,2555.0,2554.9,1.5]
[1726907342638,25.51493374,2555.0,2554.9,1.5]
[1726907343615,25.51508214,2555.0,2554.9,1.5]
[1726907344845,29.42897214,2555.0,2554.9,1.5]
[1726907348564,29.42846643,2555.0,2554.9,1.5]
[1726907350437,31.73622492,2555.0,2554.9,1.5]
[1726907351535,29.42846643,2555.0,2554.9,1.5]
[1726907352940,31.73638512,2555.0,2554.9,1.5]
[1726907353343,34.19776241,2555.0,2554.9,1.5]
[1726907353658,31.7367693,2555.0,2554.9,1.5]
[1726907354288,34.19776241,2555.0,2554.9,1.5]
[1726907354459,31.7367693,2555.0,2554.9,1.5]
[1726907354980,34.19776241,2555.0,2554.9,1.5]
[1726907356539,31.7367693,2555.0,2554.9,1.5]
[1726907356738,27.8228793,2555.0,2554.9,1.5]
[1726907356943,29.42885061,2555.0,2554.9,1.5]
[1726907357244,31.73759139,2555.0,2554.9,1.5]
[1726907357444,34.1985845,2555.0,2554.9,1.5]
[1726907364311,34.20363736,2555.0,2554.9,1.5]
[1726907367116,31.74003667,2555.0,2554.9,1.5]
[1726907368221,27.82679491,2555.0,2554.9,1.5]
[1726907368526,31.7674589,2555.0,2554.9,1.5]
[1726907371527,29.30288491,2555.0,2554.9,1.5]
[1726907371985,31.76813317,2555.0,2554.9,1.5]
[1726907373026,31.77001612,2555.0,2554.9,1.5]
[1726907373319,29.30474734,2555.0,2554.9,1.5]
[1726907373482,0.55,2554.9,2554.6,2.3186]
[1726907373684,2.05440818,2554.7,2554.6,2.3186]
[1726907373908,6.21498236,2554.7,2554.6,2.3186]
[1726907375988,24.06498236,2554.7,2554.6,2.3186]
[1726907377822,24.06572229,2554.7,2554.6,2.3186]
[1726907380122,22.01127165,2554.7,2554.6,2.3186]
[1726907380326,24.06582719,2554.7,2554.6,2.3186]
[1726907380484,24.0658335,2554.7,2554.6,2.3186]
[1726907381925,6.2158335,2554.7,2554.6,2.3186]
[1726907382733,6.21632611,2554.7,2554.6,2.3186]
[1726907383788,6.21632611,2554.7,2554.6,2.55046]
[1726907383988,5.80569513,2554.7,2554.6,2.55046]
[1726907384208,3.54722416,2554.7,2554.6,2.55046]
[1726907384609,2.31399718,2554.7,2554.6,2.55046]
[1726907385428,3.54722416,2554.7,2554.6,2.55046]
[1726907385734,3.13574541,2554.7,2554.6,2.55046]
[1726907387533,3.13625815,2554.7,2554.6,2.55046]
[1726907387954,20.98593846,2554.7,2554.6,2.55046]
[1726907388529,20.16419023,2554.7,2554.6,2.55046]
[1726907388725,20.98593846,2554.7,2554.6,2.55046]
[1726907388969,17.85,2554.7,2554.6,2.55046]
[1726907389467,17.85,2554.7,2554.6,37.55046]
[1726907392360,17.85,2554.7,2554.6,2.55046]
[1726907392870,17.85,2554.7,2554.6,37.55046]
[1726907393773,17.85,2554.9,2554.7,2.3893]
[1726907393977,17.85,2554.9,2554.8,2.3893]
[1726907394143,18.77481162,2554.9,2554.8,2.3893]
[1726907394532,17.85,2554.9,2554.8,2.3893]
[1726907394780,18.774714,2554.9,2554.8,2.3893]
[1726907395478,17.85,2554.9,2554.8,2.3893]
[1726907395638,18.77463614,2554.9,2554.8,2.3893]
[1726907395836,17.85,2554.9,2554.8,2.3893]
[1726907396337,18.77463303,2554.9,2554.8,2.3893]
[1726907396789,17.85,2554.9,2554.8,2.3893]
[1726907405990,17.85,2555.0,2554.8,2.3893]
[1726907411496,17.85,2554.9,2554.8,2.3893]
[1726907412399,17.85,2554.9,2554.8,2.3393]
[1726907413469,17.85,2554.9,2554.4,3.0]
[1726907414596,17.85,2554.9,2554.2,1.72214026]
[1726907415177,17.85,2554.9,2554.5,2.4605]
[1726907415382,19.86447079,2554.9,2554.5,2.4605]
[1726907416105,19.86447079,2554.9,2554.6,35.0]
[1726907416977,23.07751902,2554.9,2554.5,2.4605]
[1726907417503,17.85,2554.8,2554.5,2.4605]
[1726907419415,17.85,2554.8,2554.6,35.0]
[1726907422007,18.67174823,2554.8,2554.6,35.0]
[1726907422567,0.92764224,2554.7,2554.6,35.0]
[1726907423108,0.92764224,2554.7,2554.5,2.4605]
[1726907423267,0.82174823,2554.8,2554.3,2.3662]
[1726907423469,0.92766062,2554.7,2554.3,2.3662]
[1726907423775,0.92768221,2554.6,2554.3,2.3662]
[1726907423994,0.82174823,2554.7,2554.3,2.3662]
[1726907424191,0.92759099,2554.6,2554.3,2.3662]
[1726907424392,1.63223266,2554.7,2554.3,2.3662]
[1726907425119,0.92758214,2554.6,2554.3,2.3662]
[1726907425407,1.63223266,2554.7,2554.3,2.3662]
[1726907425613,0.92767617,2554.6,2554.3,2.3662]
[1726907425926,1.63223266,2554.7,2554.3,2.3662]
[1726907426221,0.92767989,2554.6,2554.3,2.3662]
[1726907426381,1.63223266,2554.7,2554.3,2.3662]
[1726907426583,0.92778342,2554.6,2554.3,2.3662]
[1726907426907,1.63223266,2554.7,2554.3,2.3662]
[1726907427111,0.92778467,2554.6,2554.3,2.3662]
[1726907427317,1.63223266,2554.7,2554.3,2.3662]
[1726907427506,2.3196078,2554.6,2554.3,2.3662]
[1726907427730,0.82174823,2554.6,2554.3,2.3662]
[1726907428221,0.92779809,2554.5,2554.3,2.3662]
[1726907428387,1.10829419,2554.6,2554.3,2.3662]
[1726907428587,2.31979944,2554.5,2554.3,2.3662]
[1726907428817,0.82174823,2554.5,2554.3,2.3662]
[1726907429143,1.10829419,2554.6,2554.3,2.3662]
[1726907429419,0.9278823,2554.5,2554.3,2.3662]
[1726907429625,1.10829419,2554.6,2554.3,2.3662]
[1726907429923,0.92801178,2554.5,2554.3,2.3662]
[1726907430234,1.10829419,2554.6,2554.3,2.3662]
[1726907430384,0.92802712,2554.5,2554.3,2.3662]
[1726907430725,1.10829419,2554.6,2554.3,2.3662]
[1726907431027,0.92800238,2554.5,2554.3,2.3662]
[1726907431196,1.10829419,2554.6,2554.3,2.3662]
[1726907432188,0.82174823,2554.6,2554.3,2.3662]
[1726907433218,0.92818083,2554.5,2554.3,2.3662]
[1726907433525,0.82174823,2554.6,2554.3,2.3662]
[1726907433700,0.9281514,2554.5,2554.3,2.3662]
[1726907433899,0.82174823,2554.6,2554.3,2.3662]
[1726907434222,0.9279776,2554.5,2554.3,2.3662]
[1726907434422,0.82174823,2554.6,2554.3,2.3662]
[1726907434627,0.92827082,2554.5,2554.3,2.3662]
[1726907434795,0.82174823,2554.6,2554.3,2.3662]
[1726907437335,0.82174823,2554.7,2554.3,2.3662]
[1726907437533,0.92784211,2554.6,2554.3,2.3662]
[1726907437830,0.82174823,2554.7,2554.3,2.3662]
[1726907438029,0.92775513,2554.6,2554.3,2.3662]
[1726907438232,0.82174823,2554.7,2554.3,2.3662]
[1726907438383,0.92776484,2554.6,2554.3,2.3662]
[1726907438699,0.82174823,2554.7,2554.3,2.3662]
[1726907438884,0.92750439,2554.6,2554.3,2.3662]
[1726907439081,0.82174823,2554.7,2554.3,2.3662]
[1726907439333,0.92748652,2554.6,2554.3,2.3662]
[1726907439628,0.82174823,2554.7,2554.3,2.77503403]
[1726907440421,0.82174823,2554.7,2554.4,0.3]
[1726907440631,0.82174823,2554.8,2554.4,0.3]
[1726907440808,0.92746514,2554.7,2554.4,0.3]
[1726907440989,0.82174823,2554.8,2554.5,2.4314]
[1726907441190,0.82174823,2554.9,2554.5,2.4314]
[1726907441389,2.3189052,2554.8,2554.5,2.4314]
[1726907441627,0.82174823,2554.8,2554.5,2.4314]
[1726907444803,0.92815108,2554.7,2554.5,2.4314]
[1726907445029,0.82174823,2554.8,2554.5,2.4314]
[1726907445332,0.92812152,2554.7,2554.5,2.4314]
[1726907445502,0.82174823,2554.8,2554.5,2.4314]
[1726907445708,0.92815255,2554.7,2554.5,2.4314]
[1726907445903,0.82174823,2554.8,2554.5,2.4314]
[1726907446103,0.92817026,2554.7,2554.5,2.4314]
[1726907446305,0.82174823,2554.8,2554.5,2.4314]
[1726907447241,1.23322698,2555.0,2554.5,2.4314]
[1726907447242,0.82174823,2554.9,2554.5,2.4314]
[1726907447541,0.92875233,2554.8,2554.5,2.4314]
[1726907447745,0.82174823,2554.9,2554.5,2.4314]
[1726907450335,0.92891975,2554.8,2554.5,2.4314]
[1726907450535,0.82174823,2554.9,2554.5,2.4314]
[1726907450709,0.9289446,2554.8,2554.5,2.4314]
[1726907450910,0.82174823,2554.9,2554.5,2.4314]
[1726907451857,0.82174823,2554.9,2554.5,2.76454]
[1726907452033,0.92890403,2554.8,2554.5,2.4314]
[1726907452223,0.82174823,2554.8,2554.5,2.4314]
[1726907452838,0.92889728,2554.7,2554.5,2.4314]
[1726907453033,0.82174823,2554.8,2554.5,2.4314]
[1726907453232,0.92890669,2554.7,2554.5,2.4314]
[1726907453558,1.43241558,2554.8,2554.5,2.4314]
[1726907453720,0.9289612,2554.7,2554.5,2.4314]
[1726907454045,1.43241558,2554.8,2554.5,2.4314]
[1726907454231,0.92899199,2554.7,2554.5,2.4314]
[1726907454435,0.82174823,2554.7,2554.5,2.4314]
[1726907454851,1.43241558,2554.8,2554.5,2.4314]
[1726907455015,2.32246058,2554.7,2554.5,2.4314]
[1726907455214,0.82174823,2554.8,2554.5,2.4314]
[1726907455413,0.92903967,2554.7,2554.5,2.4314]
[1726907455615,0.82174823,2554.8,2554.5,2.4314]
[1726907456107,0.92905805,2554.7,2554.5,2.4314]
[1726907456312,0.82174823,2554.8,2554.5,2.4314]
[1726907456624,0.92910433,2554.7,2554.5,2.4314]
[1726907456823,0.82174823,2554.8,2554.5,2.4314]
[1726907457021,0.92914206,2554.7,2554.5,2.4314]
[1726907457251,0.82174823,2554.8,2554.5,2.4314]
[1726907458353,0.82174823,2554.9,2554.6,2.4033]
[1726907463177,0.92967756,2554.8,2554.6,2.4033]
[1726907463483,0.82174823,2554.9,2554.6,2.4033]
[1726907463644,0.92987361,2554.8,2554.6,2.4033]
[1726907463977,0.82174823,2554.9,2554.6,2.4033]
[1726907464198,0.9299278,2554.8,2554.6,2.4033]
[1726907464497,0.82174823,2554.9,2554.7,35.0]
[1726907464654,0.92992897,2554.8,2554.7,35.0]
[1726907464858,2.4405,2554.7,2554.5,3.0]
[1726907465072,3.14439806,2554.6,2554.4,1.5]
[1726907465319,0.9298554,2554.5,2554.4,1.5]
[1726907465533,3.6865333,2554.5,2554.4,1.5]
[1726907466233,1.47217358,2554.5,2554.4,1.5]
[1726907467716,2.86682619,2554.5,2554.4,1.5]
[1726907468215,3.68642557,2554.5,2554.4,1.5]
[1726907468446,1.47217358,2554.5,2554.4,1.5]
[1726907470213,0.9298554,2554.5,2554.4,1.5]
[1726907471753,0.92953391,2554.5,2554.4,1.5]
[1726907476218,0.81959938,2554.6,2554.4,1.5]
[1726907476417,0.9290948,2554.5,2554.4,1.5]
[1726907478167,3.14161022,2554.5,2554.4,1.5]
[1726907478742,2.32201084,2554.5,2554.4,1.5]
[1726907479592,0.9290948,2554.5,2554.4,1.5]
[1726907479736,2.86471267,2554.5,2554.4,1.5]
[1726907480077,3.68431205,2554.5,2554.4,1.5]
[1726907480449,2.86471267,2554.5,2554.4,1.5]
[1726907480931,3.68431205,2554.5,2554.4,1.5]
[1726907481467,2.86471267,2554.5,2554.4,1.5]
[1726907481858,1.47133692,2554.5,2554.4,1.5]
[1726907482059,1.47133692,2554.5,2554.4,36.5]
[1726907482836,2.86470985,2554.5,2554.4,36.5]
[1726907483170,2.86470985,2554.5,2554.4,1.5]
[1726907483171,3.68432405,2554.5,2554.4,1.5]
[1726907484640,1.3618415,2554.5,2554.4,1.5]
[1726907485470,1.3618415,2554.5,2554.4,1.83187945]
[1726907485645,1.3618415,2554.5,2554.4,1.5]
[1726907485847,1.3618415,2554.5,2554.4,1.83187945]
[1726907486069,1.3618415,2554.5,2554.4,1.5]
[1726907486736,1.03959571,2554.5,2554.4,1.5]